bitfinex-derivatives/quotes_BTCF0:USTF0_20250426
["timestamp","ask_amount","ask_price","bid_price","bid_amount"]
[1745701053842,0.5053137,94200.0,94199.0,0.5730485]
[1745701054244,0.5053137,94200.0,94199.0,0.3608]
[1745701054551,0.5093137,94200.0,94199.0,0.3608]
[1745701055042,0.5093137,94200.0,94199.0,0.37891454]
[1745701056848,0.5093137,94200.0,94199.0,0.59116304]
[1745701057156,0.5083137,94200.0,94199.0,0.59116304]
[1745701060853,0.5083137,94200.0,94199.0,0.23036304]
[1745701079663,0.5083137,94200.0,94199.0,0.01811454]
[1745701079963,0.2122755,94187.0,94183.0,0.1181509]
[1745701080155,0.4522755,94187.0,94183.0,0.0530709]
[1745701080355,0.4522755,94187.0,94179.0,0.26919574]
[1745701080356,0.4522755,94187.0,94186.0,0.5730778]
[1745701080755,0.4834755,94187.0,94186.0,0.5730778]
[1745701081260,0.5171755,94187.0,94186.0,0.5730778]
[1745701081658,0.5171755,94187.0,94186.0,0.2122778]
[1745701081963,0.5171755,94187.0,94186.0,0.5730778]
[1745701082270,0.5171755,94187.0,94186.0,0.75910442]
[1745701083259,0.5171755,94187.0,94186.0,0.168]
[1745701084350,0.2123026,94175.0,94174.0,0.2441039]
[1745701084557,0.4523026,94175.0,94174.0,0.2441039]
[1745701085158,0.5147026,94175.0,94174.0,0.4121039]
[1745701085865,0.5147026,94175.0,94174.0,0.4141039]
[1745701086359,0.5147026,94175.0,94174.0,0.2461039]
[1745701086760,0.5167026,94175.0,94174.0,0.2441039]
[1745701087171,0.5167026,94175.0,94174.0,0.1998]
[1745701087551,0.5167026,94175.0,94174.0,0.4121048]
[1745701089064,0.5167026,94175.0,94174.0,0.2441048]
[1745701089461,0.5167026,94175.0,94174.0,0.0318]
[1745701090164,0.5167026,94175.0,94174.0,0.1998]
[1745701092170,0.2123048,94174.0,94173.0,0.37868967]
[1745701092368,0.4523048,94174.0,94173.0,0.37868967]
[1745701092574,0.5144048,94174.0,94173.0,0.37868967]
[1745701092869,0.5144048,94174.0,94173.0,0.41018967]
[1745701093265,0.5144048,94174.0,94173.0,0.57818967]
[1745701093465,0.5164048,94174.0,94173.0,0.57818967]
[1745701094071,0.5164048,94174.0,94173.0,0.18588967]
[1745701094368,0.5164048,94174.0,94173.0,0.01788967]
[1745701094574,0.2123116,94171.0,94170.0,0.06667286]
[1745701094762,0.5023116,94171.0,94170.0,0.08313809]
[1745701095071,0.5023116,94171.0,94170.0,0.01805809]
[1745701095468,0.5658116,94171.0,94170.0,0.01805809]
[1745701096063,0.5658116,94171.0,94170.0,0.00159286]
[1745701096568,0.5678116,94171.0,94170.0,0.00159286]
[1745701098670,0.56764395,94171.0,94170.0,0.00159286]
[1745701102179,0.73564395,94171.0,94170.0,0.00159286]
[1745701103176,0.56764395,94171.0,94170.0,0.00159286]
[1745701103780,0.2123319,94162.0,94161.0,0.00787291]
[1745701103980,0.2123341,94161.0,94157.0,0.00531025]
[1745701104181,0.5673341,94161.0,94157.0,0.00531025]
[1745701104577,0.5673341,94161.0,94160.0,0.01747586]
[1745701104879,0.5673341,94161.0,94160.0,0.02560099]
[1745701105078,0.5673341,94161.0,94160.0,0.00206202]
[1745701106678,0.5673341,94161.0,94160.0,0.00106202]
[1745701109481,0.5673341,94161.0,94160.0,0.00893147]
[1745701111890,0.5683341,94161.0,94160.0,0.00893147]
[1745701113595,0.5362341,94161.0,94160.0,0.58206787]
[1745701114994,0.5362341,94161.0,94160.0,0.61416787]
[1745701118996,0.5362341,94161.0,94160.0,0.40183147]
[1745701119199,0.5362341,94161.0,94160.0,0.61416787]
[1745701119400,0.5362341,94161.0,94160.0,0.40183147]
[1745701119791,0.4733341,94161.0,94160.0,0.40183147]
[1745701119991,0.4733341,94161.0,94160.0,0.43283147]
[1745701120193,0.4733341,94161.0,94160.0,0.60083147]
[1745701120899,0.4733341,94161.0,94160.0,0.81316787]
[1745701131292,0.4733341,94161.0,94160.0,0.78216787]
[1745701141906,0.4733341,94161.0,94160.0,0.75006787]
[1745701143207,0.4733341,94161.0,94160.0,0.58206787]
[1745701145210,0.4733341,94161.0,94160.0,0.75006787]
[1745701150705,0.4733341,94161.0,94160.0,0.53773147]
[1745701151210,0.4733341,94161.0,94160.0,0.17693147]
[1745701152111,0.4733341,94161.0,94160.0,0.00893147]
[1745701179228,0.6413341,94161.0,94160.0,0.00893147]
[1745701179533,0.6423341,94161.0,94160.0,0.00893147]
[1745701180426,0.212368,94146.0,94145.0,0.0325]
[1745701180623,0.843168,94146.0,94145.0,0.0633]
[1745701181129,0.2123702,94145.0,94144.0,0.00159329]
[1745701181332,0.5280702,94145.0,94144.0,0.00159329]
[1745701181627,0.3687931,94145.0,94137.0,0.0308]
[1745701181831,0.212386,94138.0,94137.0,0.0625]
[1745701182133,0.452386,94138.0,94137.0,0.36163074]
[1745701182720,0.485186,94138.0,94137.0,0.36163074]
[1745701182929,0.517786,94138.0,94137.0,0.36163074]
[1745701183126,0.517786,94138.0,94137.0,0.36263074]
[1745701184334,0.517786,94138.0,94137.0,0.37072611]
[1745701187840,0.517786,94138.0,94137.0,0.17709537]
[1745701188237,0.517786,94138.0,94137.0,0.00909537]
[1745701189641,0.518786,94138.0,94137.0,0.00809537]
[1745701189946,0.2123928,94135.0,94134.0,0.0312]
[1745701190140,0.4923928,94135.0,94134.0,0.1992]
[1745701190847,0.5574928,94135.0,94134.0,0.1992]
[1745701191439,0.5584928,94135.0,94134.0,0.1992]
[1745701193839,0.5584928,94135.0,94134.0,0.20719031]
[1745701197239,0.4933928,94135.0,94134.0,0.20719031]
[1745701197445,0.4933928,94135.0,94134.0,0.41958531]
[1745701198736,0.4933928,94135.0,94134.0,0.78038531]
[1745701203937,0.2133928,94135.0,94134.0,0.78038531]
[1745701204142,0.061,94135.0,94134.0,0.78038531]
[1745701207344,0.06,94135.0,94134.0,0.78038531]
[1745701207645,0.0530902,94150.0,94148.0,0.2123612]
[1745701207846,0.0530902,94150.0,94149.0,0.6359612]
[1745701207847,0.24,94150.0,94149.0,0.6359612]
[1745701208147,0.24,94150.0,94149.0,0.8039612]
[1745701208852,0.4523589,94150.0,94149.0,0.8039612]
[1745701210152,0.4553589,94150.0,94149.0,0.8039612]
[1745701212647,0.4553589,94150.0,94149.0,0.4431612]
[1745701212848,0.4543589,94150.0,94149.0,0.4431612]
[1745701213049,0.4543589,94150.0,94149.0,0.8039612]
[1745701213959,0.242,94150.0,94149.0,0.8039612]
[1745701214965,0.2725,94150.0,94149.0,0.7411612]
[1745701216460,0.2715,94150.0,94149.0,0.7411612]
[1745701216955,0.2725,94150.0,94149.0,0.7411612]
[1745701222955,0.2725,94150.0,94149.0,0.7722612]
[1745701223154,0.212333,94162.0,94149.0,0.7722612]
[1745701223155,0.26,94169.0,94168.0,0.2123184]
[1745701223353,0.14,94169.0,94168.0,0.2123184]
[1745701223660,0.14,94169.0,94162.0,0.065]
[1745701223851,0.0308,94168.0,94167.0,0.2123206]
[1745701224052,0.3008,94168.0,94163.0,0.0530824]
[1745701224260,0.3008,94168.0,94167.0,0.2123206]
[1745701224559,0.3008,94168.0,94162.0,0.168]
[1745701224759,0.2123256,94165.0,94162.0,0.168]
[1745701224960,0.062,94164.0,94162.0,0.168]
[1745701225166,0.342,94164.0,94161.0,0.3608]
[1745701225556,0.2123313,94163.0,94161.0,0.3608]
[1745701225762,0.4623313,94163.0,94161.0,0.3608]
[1745701225965,0.095,94162.0,94161.0,0.3608]
[1745701226160,0.335,94162.0,94161.0,0.3608]
[1745701227458,0.335,94162.0,94161.0,0.3618]
[1745701229363,0.335,94162.0,94161.0,0.3608]
[1745701229656,0.335,94162.0,94161.0,0.5731341]
[1745701231564,0.3034,94162.0,94161.0,0.5731341]
[1745701232068,0.24,94162.0,94161.0,0.7411341]
[1745701232268,0.24,94162.0,94161.0,0.7721341]
[1745701232454,0.24,94162.0,94161.0,0.8364341]
[1745701232654,0.24,94162.0,94161.0,0.8703941]
[1745701234068,0.24,94162.0,94161.0,0.5095941]
[1745701234262,0.24,94162.0,94161.0,0.8703941]
[1745701236759,0.24,94162.0,94161.0,0.5095941]
[1745701237176,0.24,94162.0,94161.0,0.8703941]
[1745701239866,0.24,94162.0,94161.0,0.5095941]
[1745701240061,0.24,94162.0,94161.0,0.8703941]
[1745701244371,0.24,94162.0,94161.0,0.8054341]
[1745701244569,0.24,94162.0,94161.0,0.8703941]
[1745701247582,0.24,94162.0,94161.0,0.9003941]
[1745701252773,0.24,94162.0,94161.0,0.5395941]
[1745701253073,0.24,94162.0,94161.0,0.9003941]
[1745701261577,0.3042,94162.0,94161.0,0.9003941]
[1745701266580,0.3042,94162.0,94161.0,0.95547414]
[1745701267485,0.3042,94162.0,94161.0,1.11795371]
[1745701268884,0.3042,94162.0,94161.0,1.08635371]
[1745701270379,0.09,94181.0,94169.0,0.0530736]
[1745701270581,0.0328,94180.0,94179.0,0.2122709]
[1745701270783,0.2828,94180.0,94179.0,0.3608]
[1745701271985,0.2828,94180.0,94179.0,0.5730723]
[1745701272185,0.2828,94180.0,94179.0,0.7410723]
[1745701272693,0.2828,94180.0,94179.0,0.75702401]
[1745701273190,0.2828,94180.0,94179.0,0.58902401]
[1745701273391,0.2828,94180.0,94179.0,0.5730723]
[1745701274091,0.2828,94180.0,94179.0,0.7410723]
[1745701275286,0.2828,94180.0,94179.0,0.75459211]
[1745701275488,0.2828,94180.0,94179.0,0.78699211]
[1745701275688,0.2828,94180.0,94179.0,0.75459211]
[1745701279592,0.2828,94180.0,94179.0,0.77076618]
[1745701282291,0.2828,94180.0,94179.0,0.77086554]
[1745701283194,0.2828,94180.0,94179.0,0.7708621]
[1745701285705,0.2828,94180.0,94179.0,0.77101252]
[1745701287800,0.2828,94180.0,94179.0,0.80191252]
[1745701289700,0.2828,94180.0,94179.0,0.78549211]
[1745701292011,0.2828,94180.0,94179.0,0.80191917]
[1745701292609,0.2828,94180.0,94179.0,0.78549211]
[1745701292805,0.2828,94180.0,94179.0,0.85041211]
[1745701293412,0.2828,94180.0,94179.0,0.86676873]
[1745701294516,0.2828,94180.0,94179.0,0.85041211]
[1745701295312,0.2828,94180.0,94179.0,0.86668385]
[1745701301805,0.2828,94180.0,94179.0,0.50588385]
[1745701302011,0.2828,94180.0,94179.0,0.86668385]
[1745701310223,0.2828,94180.0,94179.0,0.86679181]
[1745701310414,0.2828,94180.0,94179.0,0.50599181]
[1745701310614,0.2828,94180.0,94179.0,0.86679181]
[1745701312020,0.2828,94180.0,94179.0,0.86678225]
[1745701314026,0.2828,94180.0,94179.0,0.86675847]
[1745701315826,0.2828,94180.0,94179.0,0.86675535]
[1745701316218,0.2828,94180.0,94179.0,0.99675535]
[1745701317225,0.2828,94180.0,94179.0,0.82875535]
[1745701318123,0.2828,94180.0,94179.0,0.99675535]
[1745701319523,0.2828,94180.0,94179.0,0.99654917]
[1745701320830,0.2828,94180.0,94179.0,0.99661596]
[1745701322523,0.2828,94180.0,94179.0,0.9965876]
[1745701326229,0.2828,94180.0,94179.0,0.98041211]
[1745701326433,0.2828,94180.0,94179.0,0.99657245]
[1745701332544,0.2828,94180.0,94179.0,0.98041211]
[1745701338150,0.2828,94180.0,94179.0,0.61961211]
[1745701338347,0.2828,94180.0,94179.0,0.98041211]
[1745701339051,0.2828,94180.0,94179.0,0.61961211]
[1745701339249,0.2828,94180.0,94179.0,0.98041211]
[1745701344452,0.2828,94180.0,94179.0,0.61961211]
[1745701344646,0.2828,94180.0,94179.0,0.98041211]
[1745701353459,0.2828,94180.0,94179.0,0.61961211]
[1745701353655,0.25,94180.0,94179.0,0.98041211]
[1745701356559,0.3118,94180.0,94179.0,0.98041211]
[1745701365768,0.3118,94180.0,94179.0,0.61961211]
[1745701366059,0.3118,94180.0,94179.0,0.98041211]
[1745701369371,0.3118,94180.0,94179.0,0.61961211]
[1745701369570,0.3118,94180.0,94179.0,1.03549907]
[1745701371069,0.065,94187.0,94186.0,0.2122778]
[1745701371264,0.1562,94187.0,94186.0,0.39736476]
[1745701371463,0.0962,94187.0,94186.0,0.39736476]
[1745701371973,0.0962,94187.0,94186.0,0.57648027]
[1745701372268,0.0962,94187.0,94186.0,0.70940027]
[1745701372974,0.0972,94187.0,94186.0,0.69338476]
[1745701373175,0.0972,94187.0,94186.0,0.7095009]
[1745701374271,0.0972,94187.0,94186.0,0.71756304]
[1745701374469,0.0972,94187.0,94186.0,0.71763007]
[1745701374972,0.0972,94187.0,94186.0,0.71778609]
[1745701375475,0.0472,94187.0,94186.0,0.71778609]
[1745701376574,0.0472,94187.0,94186.0,1.43938609]
[1745701377375,0.11559672,94210.0,94195.0,0.0530642]
[1745701377572,0.2122264,94209.0,94206.0,0.3608]
[1745701377773,0.4822264,94209.0,94206.0,0.4008]
[1745701378074,0.106148,94208.0,94206.0,0.4008]
[1745701378275,0.5883767,94208.0,94206.0,0.41360562]
[1745701378574,0.106148,94207.0,94206.0,0.41360562]
[1745701378767,0.417148,94207.0,94206.0,0.41360562]
[1745701378970,0.667148,94207.0,94206.0,0.41360562]
[1745701379170,0.835148,94207.0,94206.0,0.41360562]
[1745701379370,0.585148,94207.0,94206.0,0.41360562]
[1745701379769,0.590148,94207.0,94206.0,0.41360562]
[1745701379977,0.8023785,94207.0,94206.0,0.41360562]
[1745701381778,0.590148,94207.0,94206.0,0.41360562]
[1745701382182,0.620348,94207.0,94206.0,0.41360562]
[1745701382477,0.651248,94207.0,94206.0,0.41360562]
[1745701382867,0.8634785,94207.0,94206.0,0.41360562]
[1745701383179,0.6954785,94207.0,94206.0,0.41360562]
[1745701384181,0.8634785,94207.0,94206.0,0.41360562]
[1745701384671,0.651248,94207.0,94206.0,0.41360562]
[1745701384876,0.453,94207.0,94206.0,0.62583832]
[1745701385172,0.2563779,94207.0,94206.0,0.81019604]
[1745701385373,0.25414725,94246.0,94213.0,0.1]
[1745701385680,0.11559672,94230.0,94229.0,0.3608]
[1745701385872,0.4521787,94230.0,94229.0,0.4108]
[1745701386673,0.5141787,94230.0,94229.0,0.4108]
[1745701387274,0.302,94230.0,94229.0,0.4108]
[1745701387670,0.302,94230.0,94229.0,0.6229809]
[1745701388068,0.302,94230.0,94229.0,0.7909809]
[1745701388373,0.307,94230.0,94229.0,0.7909809]
[1745701388578,0.307,94230.0,94229.0,0.8223809]
[1745701389184,0.307,94230.0,94229.0,0.6543809]
[1745701390174,0.307,94230.0,94229.0,0.8223809]
[1745701390883,0.302,94230.0,94229.0,0.8223809]
[1745701391184,0.306,94230.0,94229.0,0.8223809]
[1745701391681,0.244,94230.0,94229.0,0.8223809]
[1745701391881,0.244,94230.0,94229.0,0.8389624]
[1745701393282,0.244,94230.0,94229.0,0.83896171]
[1745701394585,0.24,94230.0,94229.0,0.83896171]
[1745701396182,0.24,94230.0,94229.0,0.8223809]
[1745701396688,0.4521787,94230.0,94229.0,0.218]
[1745701397181,0.4521787,94230.0,94229.0,0.05]
[1745701397576,0.5161787,94230.0,94229.0,0.05]
[1745701398573,0.304,94230.0,94229.0,0.05]
[1745701398773,0.304,94230.0,94229.0,0.2621809]
[1745701399874,0.304,94230.0,94229.0,0.2933809]
[1745701400074,0.304,94230.0,94229.0,0.3234809]
[1745701401474,0.24,94230.0,94229.0,0.3234809]
[1745701401777,0.24,94230.0,94229.0,0.70086259]
[1745701401974,0.0052,94248.0,94247.0,0.2121404]
[1745701402180,0.2652,94248.0,94247.0,0.6929404]
[1745701402382,0.2652,94248.0,94247.0,0.77579887]
[1745701402781,0.2652,94248.0,94247.0,0.83849823]
[1745701403081,0.25118627,94248.0,94247.0,1.00649823]
[1745701404180,0.25118627,94248.0,94247.0,1.02691663]
[1745701404982,0.25218627,94248.0,94247.0,1.02691663]
[1745701406282,0.20218627,94248.0,94247.0,1.02691663]
[1745701408280,0.20218627,94248.0,94247.0,1.02666513]
[1745701408686,0.20218627,94248.0,94247.0,1.0103388]
[1745701408881,0.20218627,94248.0,94247.0,0.9440588]
[1745701409081,0.20218627,94248.0,94247.0,1.0103388]
[1745701411091,0.20218627,94248.0,94247.0,0.8423388]
[1745701413291,0.20218627,94248.0,94247.0,0.4815388]
[1745701413492,0.20218627,94248.0,94247.0,1.21925352]
[1745701414997,0.20218627,94248.0,94247.0,1.2031388]
[1745701415992,0.20218627,94248.0,94247.0,1.21922158]
[1745701417495,0.20218627,94248.0,94247.0,1.21922059]
[1745701419491,0.20218627,94248.0,94247.0,0.49762059]
[1745701419797,0.20218627,94248.0,94247.0,1.21922059]
[1745701421097,0.20218627,94248.0,94247.0,0.4815388]
[1745701421291,0.20218627,94248.0,94247.0,1.2031388]
[1745701422299,0.20218627,94248.0,94247.0,1.21908094]
[1745701422604,0.20218627,94248.0,94247.0,1.2031388]
[1745701422793,0.20218627,94248.0,94247.0,1.21908149]
[1745701430611,0.20218627,94248.0,94247.0,0.49748149]
[1745701430907,0.20218627,94248.0,94247.0,1.21911492]
[1745701434602,0.20218627,94248.0,94247.0,1.21909033]
[1745701439716,0.20218627,94248.0,94247.0,0.49749033]
[1745701439916,0.20218627,94248.0,94247.0,1.21909033]
[1745701440127,0.20218627,94248.0,94247.0,1.21907117]
[1745701442121,0.20218627,94248.0,94247.0,1.21906704]
[1745701443521,0.20218627,94248.0,94247.0,1.27422866]
[1745701446415,0.20218627,94248.0,94247.0,0.55262866]
[1745701446616,0.20218627,94248.0,94247.0,1.27422866]
[1745701447419,0.20218627,94248.0,94247.0,1.27420471]
[1745701450522,0.20218627,94248.0,94247.0,1.43652743]
[1745701451118,0.20218627,94248.0,94247.0,1.43652329]
[1745701451325,0.20218627,94248.0,94247.0,1.22438289]
[1745701451516,0.20218627,94248.0,94247.0,1.13775192]
[1745701451716,0.20218627,94248.0,94247.0,0.77695192]
[1745701451917,0.20218627,94248.0,94247.0,0.71067192]
[1745701452113,0.37018627,94248.0,94247.0,0.77667192]
[1745701452323,0.37018627,94248.0,94247.0,0.76074112]
[1745701452824,0.37018627,94248.0,94247.0,0.97288152]
[1745701453012,0.40108627,94248.0,94247.0,0.97288152]
[1745701453618,0.43148627,94248.0,94247.0,0.8405588]
[1745701454214,0.26348627,94248.0,94247.0,0.8405588]
[1745701456223,0.43148627,94248.0,94247.0,0.8405588]
[1745701457224,0.26348627,94248.0,94247.0,0.8405588]
[1745701459425,0.26348627,94248.0,94247.0,0.89568144]
[1745701459627,0.26348627,94248.0,94247.0,0.8405588]
[1745701461435,0.26348627,94248.0,94247.0,0.7745588]
[1745701461634,0.26348627,94248.0,94247.0,0.8405588]
[1745701462243,0.26348627,94248.0,94247.0,0.4797588]
[1745701462540,0.26348627,94248.0,94247.0,1.2013588]
[1745701463439,0.26348627,94248.0,94247.0,1.36368152]
[1745701463642,0.26348627,94248.0,94247.0,1.418804]
[1745701464740,0.20218627,94248.0,94247.0,1.418804]
[1745701467042,0.20218627,94248.0,94247.0,1.25648128]
[1745701477148,0.20218627,94248.0,94247.0,1.41874881]
[1745701480155,0.20218627,94248.0,94247.0,1.25648128]
[1745701482556,0.20218627,94248.0,94247.0,0.53488128]
[1745701482757,0.20218627,94248.0,94247.0,1.25648128]
[1745701485662,0.20218627,94248.0,94247.0,0.53488128]
[1745701485857,0.20218627,94248.0,94247.0,1.25648128]
[1745701490560,0.20218627,94248.0,94247.0,1.27234335]
[1745701491468,0.20218627,94248.0,94247.0,1.27283103]
[1745701492768,0.20118627,94248.0,94247.0,1.27583103]
[1745701493267,0.20118627,94248.0,94247.0,1.27283103]
[1745701493567,0.20118627,94248.0,94247.0,1.27683103]
[1745701494673,0.20118627,94248.0,94247.0,1.03469063]
[1745701494867,0.76942837,94248.0,94247.0,0.56442091]
[1745701495067,0.76942837,94248.0,94247.0,0.14849843]
[1745701495270,0.93742837,94248.0,94247.0,0.01214868]
[1745701495458,1.46794837,94248.0,94247.0,0.01214868]
[1745701495658,1.53334837,94248.0,94247.0,0.01214868]
[1745701497068,1.00382837,94248.0,94247.0,0.00814868]
[1745701497371,0.2121404,94247.0,94246.0,0.21616885]
[1745701497574,0.5682444,94247.0,94246.0,0.21616885]
[1745701497767,0.6323444,94247.0,94246.0,0.21616885]
[1745701497965,0.2121516,94242.0,94241.0,0.2121523]
[1745701498169,0.4521516,94242.0,94241.0,0.2721523]
[1745701499070,0.5153516,94242.0,94241.0,0.2721523]
[1745701499266,0.6833516,94242.0,94241.0,0.2721523]
[1745701499968,0.6833516,94242.0,94241.0,0.06]
[1745701500379,0.4712,94242.0,94241.0,0.29629975]
[1745701500567,0.439,94242.0,94241.0,0.35919975]
[1745701501274,0.271,94242.0,94241.0,0.35919975]
[1745701501875,0.271,94242.0,94241.0,0.35954023]
[1745701502577,0.271,94242.0,94241.0,0.36254023]
[1745701503076,0.271,94242.0,94241.0,0.35954023]
[1745701503276,0.271,94242.0,94241.0,0.36254023]
[1745701504769,0.271,94242.0,94241.0,1.08414023]
[1745701505165,0.271,94242.0,94241.0,1.08114023]
[1745701505374,0.271,94242.0,94241.0,1.08414023]
[1745701505572,0.271,94242.0,94241.0,1.0675616]
[1745701505767,0.24,94242.0,94241.0,1.08414023]
[1745701507077,0.24,94242.0,94241.0,0.36254023]
[1745701507280,0.24,94242.0,94241.0,1.08414023]
[1745701510779,0.0328,94251.0,94250.0,0.2121336]
[1745701510977,0.3028,94251.0,94250.0,0.74951223]
[1745701511786,0.27,94251.0,94250.0,0.87885223]
[1745701511985,0.27,94251.0,94250.0,0.87985223]
[1745701513371,0.27,94251.0,94250.0,0.88185223]
[1745701514384,0.27,94251.0,94250.0,0.52105223]
[1745701514585,0.27,94251.0,94250.0,1.24265223]
[1745701514792,0.27,94251.0,94250.0,1.23965223]
[1745701515085,0.27,94251.0,94250.0,1.24465223]
[1745701515385,0.27,94251.0,94250.0,1.23965223]
[1745701515586,0.27,94251.0,94250.0,1.24465223]
[1745701517888,0.27,94251.0,94250.0,1.24465019]
[1745701519887,0.27,94251.0,94250.0,0.99991659]
[1745701520080,0.438,94251.0,94250.0,0.93467659]
[1745701520993,0.438,94251.0,94250.0,0.9181]
[1745701521586,0.438,94251.0,94250.0,1.1302336]
[1745701522085,0.438,94251.0,94250.0,1.1282336]
[1745701522487,0.438,94251.0,94250.0,1.1252336]
[1745701522683,0.438,94251.0,94250.0,1.1282336]
[1745701522883,0.438,94251.0,94250.0,1.0967336]
[1745701525091,0.438,94251.0,94250.0,1.0937336]
[1745701525278,0.438,94251.0,94250.0,1.1279336]
[1745701527678,0.438,94251.0,94250.0,1.14699813]
[1745701528285,0.438,94251.0,94250.0,1.14499813]
[1745701528880,0.438,94251.0,94250.0,1.14399813]
[1745701530185,0.438,94251.0,94250.0,1.14401117]
[1745701530385,0.438,94251.0,94250.0,1.14501117]
[1745701531884,0.438,94251.0,94250.0,1.14507213]
[1745701533692,0.438,94251.0,94250.0,1.14510143]
[1745701535584,0.438,94251.0,94250.0,1.14508567]
[1745701540594,0.438,94251.0,94250.0,1.1450901]
[1745701541187,0.438,94251.0,94250.0,1.14480692]
[1745701547008,0.438,94251.0,94250.0,1.17630692]
[1745701547305,0.438,94251.0,94250.0,1.17230692]
[1745701547601,0.438,94251.0,94250.0,1.17672404]
[1745701548107,0.27,94251.0,94250.0,1.17672404]
[1745701549098,0.438,94251.0,94250.0,1.17672404]
[1745701550200,0.27,94251.0,94250.0,1.17672404]
[1745701550595,0.27,94251.0,94250.0,1.17676845]
[1745701551903,0.4821314,94251.0,94250.0,1.17676845]
[1745701552099,0.6501314,94251.0,94250.0,1.17676845]
[1745701553196,0.7144314,94251.0,94250.0,1.17676845]
[1745701554400,0.7144314,94251.0,94250.0,1.17673747]
[1745701556108,0.7144314,94251.0,94250.0,0.81593747]
[1745701556513,0.7144314,94251.0,94250.0,0.45513747]
[1745701556714,0.7144314,94251.0,94250.0,0.81593747]
[1745701557115,0.5464314,94251.0,94250.0,0.81593747]
[1745701557826,0.5464314,94251.0,94250.0,0.60380387]
[1745701558028,0.5464314,94251.0,94250.0,0.78443747]
[1745701558323,0.7144314,94251.0,94250.0,0.78443747]
[1745701559229,0.5464314,94251.0,94250.0,0.78443747]
[1745701559929,0.5464314,94251.0,94250.0,0.7840212]
[1745701560533,0.5464314,94251.0,94250.0,0.8159212]
[1745701561029,0.5464314,94251.0,94250.0,0.4511212]
[1745701561225,0.7144314,94251.0,94250.0,0.81397073]
[1745701562125,0.5464314,94251.0,94250.0,0.81397073]
[1745701564831,0.5464314,94251.0,94250.0,0.81402833]
[1745701566627,0.5464314,94251.0,94250.0,0.45322833]
[1745701566822,0.5464314,94251.0,94250.0,0.81402833]
[1745701572330,0.5464314,94251.0,94250.0,0.81381805]
[1745701572736,0.5464314,94251.0,94250.0,0.45301805]
[1745701572941,0.5464314,94251.0,94250.0,0.81381805]
[1745701576540,0.5464314,94251.0,94250.0,0.60168445]
[1745701576842,0.5464314,94251.0,94250.0,0.81381805]
[1745701577029,0.5464314,94251.0,94250.0,0.7980336]
[1745701578347,0.5464314,94251.0,94250.0,0.7661336]
[1745701578638,0.6525314,94251.0,94250.0,0.162]
[1745701578840,0.9025314,94251.0,94250.0,0.162]
[1745701579138,1.0705314,94251.0,94250.0,0.162]
[1745701579341,0.8205314,94251.0,94250.0,0.162]
[1745701581043,0.8205314,94251.0,94250.0,0.16]
[1745701581239,0.8215314,94251.0,94250.0,0.16]
[1745701594145,0.2121449,94245.0,94244.0,0.0314]
[1745701594345,0.4821449,94245.0,94244.0,0.0314]
[1745701594552,0.58825291,94245.0,94244.0,0.0314]
[1745701594950,0.65155291,94245.0,94244.0,0.0314]
[1745701595150,0.81955291,94245.0,94244.0,0.0314]
[1745701599254,0.65155291,94245.0,94244.0,0.0314]
[1745701601157,0.81955291,94245.0,94244.0,0.0314]
[1745701602355,0.65155291,94245.0,94244.0,0.0314]
[1745701606153,0.5454449,94245.0,94244.0,0.0314]
[1745701609966,0.5464449,94245.0,94244.0,0.0314]
[1745701610464,0.5454449,94245.0,94244.0,0.0314]
[1745701610666,0.5464449,94245.0,94244.0,0.0314]
[1745701613165,0.5454449,94245.0,94244.0,0.0314]
[1745701614566,0.5464449,94245.0,94244.0,0.0314]
[1745701615966,0.5454449,94245.0,94244.0,0.0314]
[1745701620370,0.4821449,94245.0,94244.0,0.0314]
[1745701624561,0.5122449,94245.0,94244.0,0.0314]
[1745701625973,0.5425449,94245.0,94244.0,0.0314]
[1745701626872,0.5754449,94245.0,94244.0,0.0314]
[1745701635567,0.5754449,94245.0,94244.0,0.0414]
[1745701645571,0.5425449,94245.0,94244.0,0.0414]
[1745701646274,0.5122449,94245.0,94244.0,0.0414]
[1745701662289,0.5122449,94245.0,94244.0,0.0314]
[1745701664592,0.5122449,94245.0,94244.0,0.0414]
[1745701664593,0.4821449,94245.0,94244.0,0.0414]
[1745701664797,0.27,94245.0,94244.0,0.2535471]
[1745701665192,0.4821449,94245.0,94244.0,0.4215471]
[1745701666295,0.27,94245.0,94244.0,0.4215471]
[1745701666703,0.27,94245.0,94244.0,0.4235471]
[1745701667799,0.4821449,94245.0,94244.0,0.4235471]
[1745701668097,0.4821449,94245.0,94244.0,0.4215471]
[1745701668303,0.4821449,94245.0,94244.0,0.7843471]
[1745701669495,0.27,94245.0,94244.0,0.7843471]
[1745701669699,0.4821449,94245.0,94244.0,0.7843471]
[1745701671808,0.4821449,94245.0,94244.0,0.5722]
[1745701672410,0.4821449,94245.0,94244.0,0.6046]
[1745701673714,0.4821449,94245.0,94244.0,0.8167471]
[1745701683614,0.27,94245.0,94244.0,0.8167471]
[1745701685110,0.27,94245.0,94244.0,0.9228551]
[1745701688721,0.27,94245.0,94244.0,0.8167471]
[1745701688935,0.27,94245.0,94244.0,0.9228551]
[1745701692624,0.2120985,94266.0,94265.0,0.2120981]
[1745701692827,0.265125,94265.0,94264.0,0.3608]
[1745701693123,0.587425,94265.0,94264.0,0.5108]
[1745701694422,0.589425,94265.0,94264.0,0.5108]
[1745701694822,0.587425,94265.0,94264.0,0.5108]
[1745701697525,0.587425,94265.0,94264.0,0.7239021]
[1745701697526,0.5343999,94265.0,94264.0,0.7239021]
[1745701697828,0.5343999,94265.0,94264.0,0.5118]
[1745701698527,0.5343999,94265.0,94264.0,0.5108]
[1745701698826,0.5343999,94265.0,94264.0,0.5118]
[1745701701828,0.5343999,94265.0,94264.0,0.151]
[1745701702126,0.5343999,94265.0,94264.0,0.5118]
[1745701709229,0.5343999,94265.0,94264.0,0.151]
[1745701709429,0.5343999,94265.0,94264.0,0.5118]
[1745701713327,0.5343999,94265.0,94264.0,0.7239021]
[1745701713528,0.5343999,94265.0,94264.0,0.7545021]
[1745701718337,0.5343999,94265.0,94264.0,0.5424]
[1745701721326,0.5343999,94265.0,94264.0,0.1816]
[1745701721530,0.5343999,94265.0,94264.0,0.5424]
[1745701733544,0.5343999,94265.0,94264.0,0.55811551]
[1745701735646,0.5343999,94265.0,94264.0,0.55811629]
[1745701737843,0.5343999,94265.0,94264.0,0.77021839]
[1745701739448,0.5343999,94265.0,94264.0,0.77107866]